bitfinex/quotes_BTCUSD_20250513
["timestamp","ask_amount","ask_price","bid_price","bid_amount"]
[1747120210621,0.002,102740.0,102730.0,1.38260434]
[1747120212845,0.01173254,102740.0,102730.0,1.38260434]
[1747120215365,0.002,102740.0,102730.0,1.38260434]
[1747120215779,0.01173254,102740.0,102730.0,1.38260434]
[1747120217930,0.002,102740.0,102730.0,1.38260434]
[1747120218140,0.01173254,102740.0,102730.0,1.38260434]
[1747120218368,0.002,102740.0,102730.0,1.38260434]
[1747120219015,0.01173254,102740.0,102730.0,1.38260434]
[1747120220295,0.002,102740.0,102730.0,1.38260434]
[1747120220537,0.01173254,102740.0,102730.0,1.38260434]
[1747120224479,0.002,102740.0,102730.0,1.38260434]
[1747120224922,0.01173254,102740.0,102730.0,1.38260434]
[1747120225126,0.002,102740.0,102730.0,1.38260434]
[1747120225454,0.01173254,102740.0,102730.0,1.38260434]
[1747120225680,0.002,102740.0,102730.0,1.38260434]
[1747120225885,0.01173245,102740.0,102730.0,1.38260434]
[1747120227025,0.002,102740.0,102730.0,1.38260434]
[1747120227441,0.01173245,102740.0,102730.0,1.38260434]
[1747120228097,0.002,102740.0,102730.0,1.38260434]
[1747120228819,0.01173245,102740.0,102730.0,1.38260434]
[1747120231462,0.01173245,102740.0,102730.0,1.39117352]
[1747120234521,0.002,102740.0,102730.0,1.39117352]
[1747120239170,0.002,102740.0,102730.0,1.39114538]
[1747120242550,0.002,102740.0,102730.0,1.37604538]
[1747120244215,0.002,102740.0,102730.0,1.21181235]
[1747120244437,0.002,102740.0,102730.0,1.37604538]
[1747120244850,0.002,102740.0,102730.0,1.39214538]
[1747120247343,0.002,102740.0,102730.0,1.57562538]
[1747120255327,0.00164299,102740.0,102730.0,1.57562538]
[1747120256508,0.00164299,102740.0,102730.0,1.73985841]
[1747120256747,0.00164299,102740.0,102730.0,2.70625041]
[1747120262532,0.00164299,102740.0,102730.0,1.73985841]
[1747120262756,0.001,102740.0,102730.0,4.18374941]
[1747120262967,0.07039997,102770.0,102760.0,0.56382135]
[1747120263185,0.06081195,102770.0,102760.0,1.09909438]
[1747120263403,0.06081195,102770.0,102760.0,1.10759583]
[1747120263816,0.06081195,102770.0,102760.0,0.9433628]
[1747120264022,0.05108215,102770.0,102760.0,0.9433628]
[1747120264251,0.06281195,102770.0,102760.0,0.9433628]
[1747120264472,0.06581195,102770.0,102760.0,0.9433628]
[1747120266207,0.07554184,102770.0,102760.0,0.9433628]
[1747120267040,0.06643127,102770.0,102760.0,0.9433628]
[1747120271888,0.07616126,102770.0,102760.0,0.9433628]
[1747120273461,0.04697158,102770.0,102760.0,0.9433628]
[1747120273675,0.01487167,102770.0,102760.0,0.9433628]
[1747120273851,0.01487158,102770.0,102760.0,1.10759583]
[1747120274165,0.01487167,102770.0,102760.0,1.10759583]
[1747120274956,0.01487167,102770.0,102760.0,0.9433628]
[1747120275350,0.01487158,102770.0,102760.0,0.9433628]
[1747120276624,0.03990128,102770.0,102760.0,0.9433628]
[1747120277072,0.03017158,102770.0,102760.0,0.9433628]
[1747120277470,0.02044197,102770.0,102760.0,0.9433628]
[1747120278273,0.00514197,102770.0,102760.0,0.9433628]
[1747120279100,0.00514197,102770.0,102760.0,0.95790365]
[1747120279307,0.00514197,102770.0,102760.0,1.13773668]
[1747120279727,0.00514197,102770.0,102760.0,1.12213668]
[1747120280548,0.00514197,102770.0,102760.0,1.31756971]
[1747120284486,0.00514197,102770.0,102760.0,1.32256971]
[1747120284698,0.00514197,102770.0,102760.0,1.72256971]
[1747120287439,0.00514197,102770.0,102760.0,1.35152971]
[1747120287652,0.00514197,102770.0,102760.0,1.72172971]
[1747120288116,0.00514197,102770.0,102760.0,1.55749668]
[1747120289033,0.00514197,102770.0,102760.0,1.55737668]
[1747120290984,0.00514197,102770.0,102760.0,1.55237668]
[1747120292217,0.00514197,102770.0,102760.0,1.97273668]
[1747120292840,0.00514197,102770.0,102760.0,1.80850365]
[1747120293042,0.00514197,102770.0,102760.0,1.97273668]
[1747120298324,0.00514197,102770.0,102760.0,1.75653668]
[1747120298559,0.00514197,102770.0,102760.0,1.94121668]
[1747120298756,0.00514197,102770.0,102760.0,1.77698365]
[1747120299039,0.00514197,102770.0,102760.0,1.94121668]
[1747120301423,0.00514197,102770.0,102760.0,1.79298365]
[1747120301630,0.00514197,102770.0,102760.0,1.80848365]
[1747120301844,0.00514197,102770.0,102760.0,1.97271668]
[1747120302732,0.00514197,102770.0,102760.0,1.55235668]
[1747120305135,0.00514197,102770.0,102760.0,1.64966608]
[1747120305988,0.00514197,102770.0,102760.0,1.46993305]
[1747120306229,0.00514197,102770.0,102760.0,1.63416608]
[1747120306641,0.00514197,102770.0,102760.0,1.61816608]
[1747120307849,0.00514197,102770.0,102760.0,1.64976608]
[1747120308043,0.00514197,102770.0,102760.0,1.61816608]
[1747120308611,0.00514197,102770.0,102760.0,1.62356608]
[1747120309632,0.02124197,102770.0,102760.0,1.62356608]
[1747120310409,0.03724197,102770.0,102760.0,0.86925305]
[1747120310673,0.03724197,102770.0,102760.0,1.05917305]
[1747120311028,0.03724197,102770.0,102760.0,1.45917305]
[1747120315853,0.03724197,102770.0,102760.0,1.08417305]
[1747120316081,0.03724197,102770.0,102760.0,1.45861305]
[1747120316566,0.02124197,102770.0,102760.0,1.62284608]
[1747120316780,0.00514197,102770.0,102760.0,1.62284608]
[1747120317002,0.00514197,102770.0,102760.0,1.78707911]
[1747120317226,0.00514197,102770.0,102760.0,1.81877911]
[1747120317439,0.00514197,102770.0,102760.0,1.65454608]
[1747120317646,0.00514197,102770.0,102760.0,1.81877911]
[1747120317875,0.00514197,102770.0,102760.0,1.65454608]
[1747120318287,0.00514197,102770.0,102760.0,1.81877911]
[1747120318494,0.00514197,102770.0,102760.0,1.65454608]
[1747120318725,0.00514197,102770.0,102760.0,1.81877911]
[1747120318923,0.00514197,102770.0,102760.0,1.65454608]
[1747120319352,0.00514197,102770.0,102760.0,1.81877911]
[1747120320422,0.00514197,102770.0,102760.0,1.65454608]
[1747120320593,0.00514197,102770.0,102760.0,1.81877911]
[1747120331979,0.00514197,102770.0,102760.0,1.78707911]
[1747120332300,0.00514197,102770.0,102760.0,1.62284608]
[1747120332498,0.00514197,102770.0,102760.0,1.78707911]
[1747120332720,0.00514197,102770.0,102760.0,1.45861305]
[1747120332903,0.00514197,102770.0,102760.0,1.22284608]
[1747120333679,0.02034197,102770.0,102760.0,1.62284608]
[1747120333863,0.02034197,102770.0,102760.0,1.22284608]
[1747120334161,0.02034197,102770.0,102760.0,1.62284608]
[1747120334768,0.02034197,102770.0,102760.0,1.24840608]
[1747120334979,0.02034197,102770.0,102760.0,1.79079911]
[1747120338304,0.02034197,102770.0,102760.0,1.79055911]
[1747120338929,0.00514197,102770.0,102760.0,1.79055911]
[1747120339132,0.00514197,102770.0,102760.0,1.82205911]
[1747120339550,0.00514197,102770.0,102760.0,1.80625911]
[1747120339755,0.00514197,102770.0,102760.0,1.79055911]
[1747120344274,0.00514197,102770.0,102760.0,1.82165911]
[1747120352770,0.00514197,102770.0,102760.0,1.80595911]
[1747120353363,0.00514197,102770.0,102760.0,1.82175911]
[1747120357213,0.00514197,102770.0,102760.0,1.80595911]
[1747120357561,0.00514197,102770.0,102760.0,1.79055911]
[1747120358031,0.00514197,102770.0,102760.0,1.82255911]
[1747120358233,0.00514197,102770.0,102760.0,1.79055911]
[1747120359272,0.02094197,102770.0,102760.0,1.78903911]
[1747120360741,0.03744197,102770.0,102760.0,1.78903911]
[1747120360957,0.03744197,102770.0,102760.0,1.78887911]
[1747120361156,0.03744197,102770.0,102760.0,1.41263911]
[1747120361391,0.03744197,102770.0,102760.0,1.78679911]
[1747120361911,0.03744197,102770.0,102760.0,1.41263911]
[1747120362117,0.03744197,102770.0,102760.0,1.62252608]
[1747120362324,0.03744197,102770.0,102760.0,1.45829305]
[1747120362531,0.03744197,102770.0,102760.0,1.62252608]
[1747120362736,0.03744197,102770.0,102760.0,1.62248608]
[1747120363826,0.04717158,102770.0,102760.0,1.62236608]
[1747120364027,0.03744197,102770.0,102760.0,1.24840608]
[1747120364171,0.03744197,102770.0,102760.0,1.62236608]
[1747120367934,0.04717158,102770.0,102760.0,1.62236608]
[1747120368132,0.04717167,102770.0,102760.0,1.62236608]
[1747120368333,0.04717177,102770.0,102760.0,1.51023583]
[1747120368575,0.04717167,102770.0,102760.0,1.51023583]
[1747120369455,0.04717158,102770.0,102760.0,1.51023583]
[1747120370246,0.07615214,102770.0,102760.0,1.51023583]
[1747120370638,0.07615214,102770.0,102760.0,1.11023583]
[1747120370873,0.04717158,102770.0,102760.0,1.11023583]
[1747120371021,0.05690138,102770.0,102760.0,1.11023583]
[1747120371231,0.04717158,102770.0,102760.0,1.51023583]
[1747120371440,0.05690138,102770.0,102760.0,1.11023583]
[1747120372038,0.05690128,102770.0,102760.0,1.51023583]
[1747120372474,0.28924922,102770.0,102760.0,0.74034102]
[1747120372675,0.29897949,102770.0,102760.0,0.75007224]
[1747120372938,0.28924969,102770.0,102760.0,0.53598145]
[1747120373453,0.28924969,102770.0,102760.0,0.19598145]
[1747120373622,0.27951961,102770.0,102760.0,0.19598145]
[1747120373827,0.27951961,102770.0,102760.0,0.53598145]
[1747120375452,0.26978943,102770.0,102760.0,0.53598145]
[1747120375833,0.26978943,102770.0,102760.0,0.34850145]
[1747120377270,0.24178175,102770.0,102760.0,0.55286112]
[1747120377513,0.24178175,102770.0,102760.0,0.34850145]
[1747120377717,0.24178175,102770.0,102760.0,0.35823286]
[1747120378548,0.24178175,102770.0,102760.0,0.56259243]
[1747120378945,0.24178175,102770.0,102760.0,0.55286112]
[1747120379112,0.24178175,102770.0,102760.0,0.34850145]
[1747120379515,0.24178175,102770.0,102760.0,0.35823286]
[1747120379725,0.24178175,102770.0,102760.0,0.36796417]
[1747120379953,0.24178175,102770.0,102760.0,0.57232365]
[1747120380533,0.24178175,102770.0,102760.0,0.56259243]
[1747120380767,0.24178175,102770.0,102760.0,0.57232365]
[1747120380984,0.24178175,102770.0,102760.0,0.73655668]
[1747120382731,0.25151193,102770.0,102760.0,0.73655668]
[1747120384513,0.25151193,102770.0,102760.0,0.7462878]
[1747120384967,0.25151193,102770.0,102760.0,0.58205477]
[1747120385592,0.25151193,102770.0,102760.0,0.55286112]
[1747120385821,0.25151193,102770.0,102760.0,0.57232365]
[1747120387687,0.25151193,102770.0,102760.0,0.58205477]
[1747120390033,0.25151193,102770.0,102760.0,0.5917858]
[1747120390248,0.25151193,102770.0,102760.0,0.58205477]
[1747120391658,0.25151193,102770.0,102760.0,0.5917858]
[1747120391857,0.25151193,102770.0,102760.0,0.58205477]
[1747120393951,0.25151193,102770.0,102760.0,0.57232365]
[1747120394218,0.25151193,102770.0,102760.0,0.58205477]
[1747120396316,0.25151193,102770.0,102760.0,0.57232365]
[1747120396751,0.25151193,102770.0,102760.0,0.34850145]
[1747120396990,0.24178175,102770.0,102760.0,0.55286093]
[1747120398638,0.24178175,102770.0,102760.0,0.56259205]
[1747120399558,0.28610221,102770.0,102760.0,0.34850145]
[1747120399998,0.28610221,102770.0,102760.0,0.35823276]
[1747120400206,0.28610221,102770.0,102760.0,0.55286102]
[1747120400433,0.24178175,102770.0,102760.0,0.55286102]
[1747120400850,0.24861834,102770.0,102760.0,0.56259224]
[1747120401685,0.25834852,102770.0,102760.0,0.56259224]
[1747120401907,0.25834852,102770.0,102760.0,0.57232336]
[1747120402127,0.25834852,102770.0,102760.0,0.56259224]
[1747120403217,0.25834852,102770.0,102760.0,0.57232336]
[1747120404893,0.25834852,102770.0,102760.0,0.55286102]
[1747120405093,0.25834852,102770.0,102760.0,0.57232336]
[1747120405621,0.06373806,102770.0,102760.0,0.75601817]
[1747120405789,0.04116824,102770.0,102760.0,0.75601817]
[1747120405984,0.23577756,102770.0,102760.0,0.75601817]
[1747120406449,0.24550783,102770.0,102760.0,0.75601817]
[1747120406804,0.24550783,102770.0,102760.0,0.59178514]
[1747120407270,0.04116814,102770.0,102760.0,0.59178514]
[1747120407738,0.24550773,102770.0,102760.0,0.59178514]
[1747120407867,0.04116814,102770.0,102760.0,0.59178514]
[1747120408317,0.04116824,102770.0,102760.0,0.59178514]
[1747120408490,0.23577756,102770.0,102760.0,0.59178514]
[1747120408903,0.24550783,102770.0,102760.0,0.56883774]
[1747120410588,0.05089851,102770.0,102760.0,0.56883774]
[1747120411929,0.24550783,102770.0,102760.0,0.55910699]
[1747120412159,0.2707382,102770.0,102760.0,0.56883783]
[1747120412389,0.2707382,102770.0,102760.0,0.56883727]
[1747120412508,0.06639851,102770.0,102760.0,0.56883727]
[1747120412867,0.2707382,102770.0,102760.0,0.56883727]
[1747120413070,0.2707382,102770.0,102760.0,0.55910652]
[1747120415836,0.27073905,102770.0,102760.0,0.55910652]
[1747120415964,0.26100859,102770.0,102760.0,0.55910661]
[1747120416174,0.26100868,102770.0,102760.0,0.55910661]
[1747120416406,0.26100868,102770.0,102760.0,0.54937568]
[1747120416763,0.26100868,102770.0,102760.0,0.55910661]
[1747120419004,0.24550868,102770.0,102760.0,0.55910661]
[1747120420017,0.24550868,102770.0,102760.0,0.56883745]
[1747120420211,0.24550868,102770.0,102760.0,0.55910661]
[1747120420417,0.24550868,102770.0,102760.0,0.72333964]
[1747120420827,0.24550868,102770.0,102760.0,0.72333955]
[1747120420976,0.24550868,102770.0,102760.0,0.71360871]
[1747120421180,0.24550868,102770.0,102760.0,0.72333964]
[1747120421385,0.24550868,102770.0,102760.0,0.55910661]
[1747120422000,0.24550859,102770.0,102760.0,0.55910661]
[1747120422364,0.25523905,102770.0,102760.0,0.55910661]
[1747120422571,0.24550916,102770.0,102760.0,0.55910661]
[1747120423620,0.24550916,102770.0,102760.0,0.54937568]
[1747120423832,0.24550916,102770.0,102760.0,0.55910661]
[1747120425402,0.24550916,102770.0,102760.0,0.53964465]
[1747120425613,0.23577898,102770.0,102760.0,0.54937568]
[1747120425795,0.23577898,102770.0,102760.0,0.53964465]
[1747120426284,0.23577898,102770.0,102760.0,0.54937568]
[1747120426647,0.23577898,102770.0,102760.0,0.53964465]
[1747120427037,0.23577898,102770.0,102760.0,0.54937568]
[1747120431882,0.23577898,102770.0,102760.0,0.55910652]
[1747120432331,0.23577898,102770.0,102760.0,0.55910661]
[1747120433248,0.23577898,102770.0,102760.0,0.56883745]
[1747120433765,0.23577898,102770.0,102760.0,0.55910661]
[1747120436030,0.23577898,102770.0,102760.0,0.56883745]
[1747120436571,0.23577851,102770.0,102760.0,0.56883745]
[1747120436801,0.23577851,102770.0,102760.0,0.58413698]
[1747120436982,0.24550897,102770.0,102760.0,0.55910623]
[1747120441587,0.24550897,102770.0,102760.0,0.56883698]
[1747120442247,0.24550897,102770.0,102760.0,0.55910623]
[1747120442751,0.24550897,102770.0,102760.0,0.54937539]
[1747120442899,0.24550897,102770.0,102760.0,0.55910623]
[1747120444584,0.24550897,102770.0,102760.0,0.56883698]
[1747120445079,0.24250897,102770.0,102760.0,0.56883698]
[1747120446638,0.23277851,102770.0,102760.0,0.56883698]
[1747120446840,0.24250897,102770.0,102760.0,0.56883698]
[1747120447247,0.24250897,102770.0,102760.0,0.55910623]
[1747120447676,0.23277851,102770.0,102760.0,0.56883698]
[1747120448465,0.24250897,102770.0,102760.0,0.55910623]
[1747120449920,0.24250897,102770.0,102760.0,0.56883698]
[1747120449921,0.02843825,102770.0,102760.0,0.56883698]
[1747120450175,0.01870836,102770.0,102760.0,1.13235001]
[1747120450385,0.03816853,102770.0,102760.0,0.96811698]
[1747120450597,0.03816853,102770.0,102760.0,1.36811698]
[1747120451674,0.23567219,102770.0,102760.0,1.32322484]
[1747120451925,0.22594173,102770.0,102760.0,1.33295577]
[1747120452147,0.24134173,102770.0,102760.0,0.73369606]
[1747120452359,0.26677219,102770.0,102760.0,0.91973606]
[1747120453004,0.25107219,102770.0,102760.0,0.91973606]
[1747120453188,0.25107219,102770.0,102760.0,0.92946699]
[1747120453516,0.25791418,102770.0,102760.0,0.74514699]
[1747120454013,0.24251418,102770.0,102760.0,0.74514699]
[1747120454545,0.24251418,102770.0,102760.0,0.73541606]
[1747120454983,0.24828419,102770.0,102760.0,0.73541625]
[1747120455186,0.24828419,102770.0,102760.0,0.74514737]
[1747120456403,0.24828419,102770.0,102760.0,0.7548784]
[1747120457042,0.23855401,102770.0,102760.0,0.70622231]
[1747120457246,0.23855401,102770.0,102760.0,0.72568465]
[1747120458021,0.23855401,102770.0,102760.0,0.90027353]
[1747120458363,0.23855401,102770.0,102760.0,0.898397]
[1747120458565,0.23855401,102770.0,102760.0,0.90812822]
[1747120458788,0.23855401,102770.0,102760.0,0.91785934]
[1747120459734,0.23855401,102770.0,102760.0,0.91729934]
[1747120460549,0.23855401,102770.0,102760.0,0.90756822]
[1747120460788,0.23855401,102770.0,102760.0,0.69347733]
[1747120460992,0.23855401,102770.0,102760.0,0.90756812]
[1747120461198,0.23855401,102770.0,102760.0,0.897837]
[1747120461405,0.23855401,102770.0,102760.0,0.90756812]
[1747120461608,0.23855401,102770.0,102760.0,0.897837]
[1747120461811,0.23855401,102770.0,102760.0,0.91729943]
[1747120463216,0.23855401,102770.0,102760.0,0.90756831]
[1747120463446,0.23855401,102770.0,102760.0,0.91729953]
[1747120464307,0.23855401,102770.0,102760.0,0.69347733]
[1747120464648,0.23855401,102770.0,102760.0,0.897837]
[1747120465084,0.23855401,102770.0,102760.0,0.90756831]
[1747120465256,0.22305401,102770.0,102760.0,0.90756831]
[1747120467032,0.21332374,102770.0,102760.0,0.897837]
[1747120467237,0.21332374,102770.0,102760.0,0.53776831]
[1747120467458,0.21332374,102770.0,102760.0,0.91701953]
[1747120470058,0.21332374,102770.0,102760.0,0.54749953]
[1747120470254,0.21332374,102770.0,102760.0,0.91689953]
[1747120470784,0.21332374,102770.0,102760.0,0.91685953]
[1747120471798,0.21332374,102770.0,102760.0,0.54749953]
[1747120472104,0.21332374,102770.0,102760.0,0.91681953]
[1747120473705,0.21332374,102770.0,102760.0,0.92655065]
[1747120475084,0.21332374,102770.0,102760.0,0.93628168]
[1747120475366,0.21332374,102770.0,102760.0,0.9362812]
[1747120476814,0.22305392,102770.0,102760.0,0.9362812]
[1747120477417,0.22305392,102770.0,102760.0,0.93628073]
[1747120480479,0.0284446,102770.0,102760.0,0.93628073]
[1747120480690,0.22305392,102770.0,102760.0,0.93628073]
[1747120483535,0.22305392,102770.0,102760.0,0.92654989]
[1747120483995,0.22305392,102770.0,102760.0,0.74222989]
[1747120487727,0.22305392,102770.0,102760.0,0.73249896]
[1747120488429,0.22305392,102770.0,102760.0,0.74222989]
[1747120489785,0.22305392,102770.0,102760.0,0.73249896]
[1747120490194,0.22305392,102770.0,102760.0,0.74222989]
[1747120491571,0.22305392,102770.0,102760.0,0.75196064]
[1747120491782,0.22305392,102770.0,102760.0,0.74222989]
[1747120492013,0.22305392,102770.0,102760.0,0.75196073]
[1747120492301,0.22305392,102770.0,102760.0,0.74222989]
[1747120492475,0.22305392,102770.0,102760.0,0.75196073]
[1747120493091,0.22305392,102770.0,102760.0,0.73249896]
[1747120494650,0.22305392,102770.0,102760.0,0.54749896]
[1747120494893,0.45534155,102770.0,102760.0,0.00517588]
[1747120495262,0.00973292,102740.0,102730.0,1.077303]
[1747120495537,0.23031163,102750.0,102740.0,0.21413227]
[1747120495894,0.23031163,102750.0,102740.0,0.55413227]
[1747120496464,0.21411163,102750.0,102740.0,0.57359783]
[1747120496665,0.02919603,102750.0,102740.0,0.61633047]
[1747120496873,0.02919603,102750.0,102740.0,0.7805635]
[1747120497703,0.02919603,102750.0,102740.0,0.7825635]
[1747120498303,0.23357549,102750.0,102740.0,0.7825635]
[1747120498507,0.03892829,102750.0,102740.0,0.7825635]
[1747120498954,0.03892829,102750.0,102740.0,0.61833047]
[1747120499366,0.02919603,102750.0,102740.0,0.61833047]
[1747120501701,0.01946386,102750.0,102740.0,0.61833047]
[1747120502270,0.19004167,102760.0,102740.0,0.6183298]
[1747120502474,0.01946386,102750.0,102740.0,0.61832933]
[1747120503024,0.02919603,102750.0,102740.0,0.61832933]
[1747120503278,0.02919603,102750.0,102740.0,0.61632933]
[1747120503500,0.02919527,102750.0,102740.0,0.61632933]
[1747120503717,0.02919527,102750.0,102740.0,0.61832933]
[1747120503927,0.40026807,102750.0,102740.0,0.53666614]
[1747120504140,0.24501135,102750.0,102740.0,0.55413246]
[1747120504321,0.24501135,102750.0,102740.0,0.56586538]
[1747120504493,0.24501135,102750.0,102740.0,0.57559821]
[1747120504905,0.05036415,102750.0,102740.0,0.58333094]
[1747120505204,0.03019584,102750.0,102740.0,0.58333028]
[1747120505403,0.001,102750.0,102740.0,0.77916331]
[1747120505717,0.23616474,102760.0,102750.0,0.22384313]
[1747120505919,0.23355275,102760.0,102750.0,0.22384313]
[1747120506259,0.24328416,102760.0,102750.0,0.22384313]
[1747120506707,0.23355332,102760.0,102750.0,0.21411144]
[1747120506935,0.25095332,102760.0,102750.0,0.21411144]
[1747120507442,0.04859365,102760.0,102750.0,0.22384313]
[1747120507594,0.25295332,102760.0,102750.0,0.22384313]
[1747120507807,0.25295332,102760.0,102750.0,0.22384332]
[1747120509771,0.2432222,102760.0,102750.0,0.21411144]
[1747120510206,0.23349098,102760.0,102750.0,0.21411144]
[1747120512031,0.22375967,102760.0,102750.0,0.20437946]
[1747120512268,0.20735967,102760.0,102750.0,0.22384351]
[1747120514569,0.02246196,102760.0,102750.0,0.42930823]
[1747120514954,0.03219318,102760.0,102750.0,0.42930823]
[1747120515165,0.02246168,102760.0,102750.0,0.76930823]
[1747120516617,0.03219252,102760.0,102750.0,0.76930823]
[1747120517856,0.003,102760.0,102750.0,0.76930823]
[1747120518476,0.01273065,102760.0,102750.0,0.86661763]
[1747120520098,0.01273065,102760.0,102750.0,1.05065763]
[1747120520277,0.003,102760.0,102750.0,1.05065763]
[1747120520529,0.01273065,102760.0,102750.0,1.05065763]
[1747120521482,0.003,102760.0,102750.0,1.05065763]
[1747120521935,0.01273056,102760.0,102750.0,1.05065763]
[1747120522119,0.01273056,102760.0,102750.0,1.23465763]
[1747120522319,0.003,102760.0,102750.0,1.23465763]
[1747120524321,0.01273056,102760.0,102750.0,1.23465763]
[1747120524535,0.003,102760.0,102750.0,1.23465763]
[1747120525798,0.003,102760.0,102750.0,1.41343151]
[1747120529389,0.003,102760.0,102750.0,1.81343151]
[1747120530023,0.003,102760.0,102750.0,2.37062454]
[1747120530256,0.003,102760.0,102750.0,2.20639151]
[1747120530636,0.001,102760.0,102750.0,2.20639151]
[1747120531006,0.001,102760.0,102750.0,2.20739151]
[1747120531539,0.03802881,102790.0,102780.0,0.56377779]
[1747120531742,0.03807739,102790.0,102780.0,0.91092845]
[1747120532538,0.03807749,102790.0,102780.0,0.91092845]
[1747120532695,0.0283493,102790.0,102780.0,0.91092845]
[1747120533298,0.0293493,102790.0,102780.0,0.91092845]
[1747120533691,0.0313493,102790.0,102780.0,0.91092845]
[1747120533894,0.01189358,102790.0,102780.0,1.09066148]
[1747120534098,0.01189358,102790.0,102780.0,1.10656148]
[1747120534504,0.01189358,102790.0,102780.0,1.21841173]
[1747120535581,0.01189358,102790.0,102780.0,1.0541787]
[1747120535930,0.01189358,102790.0,102780.0,1.23314016]
[1747120536375,0.01189358,102790.0,102780.0,1.63314016]
[1747120537442,0.01189358,102790.0,102780.0,1.46890713]
[1747120538440,0.01189358,102790.0,102780.0,1.63314016]
[1747120538787,0.01189358,102790.0,102780.0,1.46890713]
[1747120539085,0.01189358,102790.0,102780.0,1.65374713]
[1747120540642,0.02779358,102790.0,102780.0,1.25350713]
[1747120540992,0.04309358,102790.0,102780.0,0.56269542]
[1747120541197,0.06254948,102790.0,102780.0,0.93249542]
[1747120541641,0.06254939,102790.0,102780.0,0.93249542]
[1747120541993,0.05282139,102790.0,102780.0,0.93249542]
[1747120542630,0.06254939,102790.0,102780.0,0.93249542]
[1747120543422,0.06254939,102790.0,102780.0,0.93229542]
[1747120544459,0.04309358,102790.0,102780.0,0.93229542]
[1747120544697,0.05282139,102790.0,102780.0,0.93229542]
[1747120545019,0.06254939,102790.0,102780.0,0.93229542]
[1747120545344,0.04309358,102790.0,102780.0,1.09652845]
[1747120545729,0.02779358,102790.0,102780.0,1.09652845]
[1747120546486,0.03752149,102790.0,102780.0,0.72692845]
[1747120546760,0.01189358,102790.0,102780.0,1.56702476]
[1747120547171,0.01189358,102790.0,102780.0,2.23283376]
[1747120547376,0.00989358,102790.0,102780.0,2.23283376]
[1747120547596,0.00889358,102790.0,102780.0,2.23283376]
[1747120547803,0.00989358,102790.0,102780.0,2.23383376]
[1747120548439,0.00989358,102790.0,102780.0,2.23283376]
[1747120548632,0.00989358,102790.0,102780.0,2.23383376]
[1747120548933,0.00889358,102790.0,102780.0,2.06960073]
[1747120549384,0.00989358,102790.0,102780.0,1.40379173]
[1747120549600,0.00989358,102790.0,102780.0,1.27463382]
[1747120549816,0.00989358,102790.0,102780.0,1.62390685]
[1747120550038,0.02934939,102790.0,102780.0,1.62390685]
[1747120550429,0.01962139,102790.0,102780.0,1.62390685]
[1747120550658,0.0293493,102790.0,102780.0,1.609366]
[1747120550880,0.24944884,102790.0,102780.0,0.51144649]
[1747120551081,0.2553215,102790.0,102780.0,0.39003971]
[1747120551327,0.2553215,102790.0,102780.0,0.18572]
[1747120551716,0.2553215,102790.0,102780.0,0.001]
[1747120551959,0.2553215,102790.0,102780.0,0.20531989]
[1747120552167,0.24559341,102790.0,102780.0,0.001]
[1747120552380,0.66878891,102790.0,102780.0,0.001]
[1747120552753,0.67787254,102790.0,102780.0,0.001]
[1747120553176,0.60197761,102790.0,102780.0,0.001]
[1747120553695,0.59189398,102790.0,102780.0,0.001]
[1747120553993,0.23661971,102780.0,102770.0,0.5637987]
[1747120554640,0.23661971,102780.0,102770.0,0.34]
[1747120555201,0.23661971,102780.0,102770.0,0.341]
[1747120556531,0.23661971,102780.0,102770.0,0.35073046]
[1747120556667,0.23661971,102780.0,102770.0,0.341]
[1747120557294,0.23661971,102780.0,102770.0,0.35073046]
[1747120558126,0.23661971,102780.0,102770.0,0.341]
[1747120558544,0.31535824,102780.0,102770.0,0.341]
[1747120558944,0.23661971,102780.0,102770.0,0.341]
[1747120559310,0.23661971,102780.0,102770.0,0.54533978]
[1747120559520,0.23661971,102780.0,102770.0,0.55507015]
[1747120559743,0.23661971,102780.0,102770.0,0.54533978]
[1747120559950,0.23661971,102780.0,102770.0,0.55407015]
[1747120560161,0.23661971,102780.0,102770.0,0.56380033]
[1747120560363,0.23961971,102780.0,102770.0,0.55407015]
[1747120560574,0.23961971,102780.0,102770.0,0.56380033]
[1747120560749,0.23961971,102780.0,102770.0,0.55407015]
[1747120561298,0.22989038,102780.0,102770.0,0.34]
[1747120561490,0.22989038,102780.0,102770.0,0.55407015]
[1747120561703,0.22989038,102780.0,102770.0,0.56380042]
[1747120562155,0.30795598,102780.0,102770.0,0.34973046]
[1747120562387,0.30795598,102780.0,102770.0,0.34]
[1747120562584,0.22989038,102780.0,102770.0,0.34]
[1747120562791,0.22989038,102780.0,102770.0,0.53460932]
[1747120563007,0.22989038,102780.0,102770.0,0.34]
[1747120563436,0.23623959,102770.0,102760.0,0.18472]
[1747120563659,0.23623959,102770.0,102750.0,0.20437908]
[1747120563867,0.23623959,102770.0,102750.0,0.7194072]
[1747120563868,0.23565948,102760.0,102750.0,0.7194072]
[1747120564084,0.24539079,102760.0,102750.0,0.72913937]
[1747120564278,0.24539079,102760.0,102750.0,0.73887144]
[1747120564488,0.22592826,102760.0,102750.0,0.52476]
[1747120564891,0.22592826,102760.0,102750.0,0.5346472]
[1747120565122,0.22592826,102760.0,102750.0,0.55411182]
[1747120565328,0.22592826,102760.0,102750.0,0.34]
[1747120565541,0.22592826,102760.0,102750.0,0.5346472]
[1747120565722,0.22592826,102760.0,102750.0,0.54437946]
[1747120566157,0.29298114,102760.0,102750.0,0.34]
[1747120566361,0.23607937,102750.0,102740.0,0.18476]
[1747120566571,0.22386434,102740.0,102730.0,0.39069757]
[1747120566786,0.23609916,102740.0,102730.0,0.00973425]
[1747120566992,0.01946689,102730.0,102720.0,0.42396811]
[1747120567195,0.23025312,102730.0,102720.0,0.18476]
[1747120567412,0.06090219,102730.0,102720.0,0.4086684]
[1747120567657,0.25563581,102730.0,102720.0,0.38919914]
[1747120567863,0.24590184,102730.0,102720.0,0.38919914]
[1747120568279,0.23030184,102730.0,102720.0,0.73893405]
[1747120568460,0.23030184,102730.0,102720.0,0.40866887]
[1747120568697,0.0195157,102730.0,102720.0,0.77013812]
[1747120568913,0.03898373,102730.0,102720.0,0.78673812]
[1747120569120,0.03898373,102730.0,102720.0,0.75066849]
[1747120569803,0.24340298,102730.0,102720.0,0.75166849]
[1747120571630,0.03898373,102730.0,102720.0,0.75166849]
[1747120572032,0.23366882,102730.0,102720.0,0.74193396]
[1747120572297,0.25900298,102730.0,102720.0,0.75166859]
[1747120572515,0.32407842,102730.0,102720.0,0.18776]
[1747120572729,0.32407842,102730.0,102720.0,0.003]
[1747120572730,0.65191096,102730.0,102720.0,0.003]
[1747120573527,0.00973539,102710.0,102700.0,0.23368509]
[1747120573728,0.22393002,102710.0,102700.0,0.55421233]
[1747120573938,0.23366607,102710.0,102700.0,0.56394885]
[1747120574139,0.24340222,102710.0,102700.0,0.56394885]
[1747120574345,0.23366607,102710.0,102700.0,0.57368528]
[1747120574540,0.03894307,102710.0,102700.0,0.57368528]
[1747120574941,0.02920702,102710.0,102700.0,0.57368528]
[1747120575160,0.02920692,102710.0,102700.0,0.57368528]